Cogmind - Beta 15 @@@ ROGUE MODE // 2025.09.15 @ 14:04:40 Player: Dwarfinator Result: Destroyed by G-47 Trooper with Particle Gun Performance ------------- Evolutions (0) 0 Regions Visited (2) 400 Robots Destroyed (35) 175 Value Destroyed (563) 563 Prototype IDs (0) 0 Alien Tech Used (0) 0 Bonus (0) 0 TOTAL SCORE: 1138 Bonus ------- None Cogmind --------- Core Integrity 0/250 Matter 224/300 Energy 125/125 System Corruption 0% Temperature Warm (125) Movement Treading (320) Ox2 Location -10/Mines Parts ------- > --- POWER (1) -------- Light Ion Engine > --- PROPULSION (2) --- Light Treads Light Treads > --- UTILITY (2) ------ Huge Storage Unit Seismic Detector > --- WEAPON (2) ------- Assault Rifle Light Assault Rifle > --- INVENTORY (25) --- Light Ion Engine Light Treads Light Treads Light Treads Light Treads Light Treads Improved Treads Improved Treads Heat Sink Large Matter Pod (150) Large Matter Pod (150) Seismic Detector Light Assault Rifle Light Assault Rifle Light Assault Rifle Mining Laser Makeshift Spear Peak State ------------ > --- POWER ------------ Improved Ion Engine > --- PROPULSION ------- Improved Treads Improved Treads > --- UTILITY ---------- Huge Storage Unit Seismic Detector > --- WEAPON ----------- Heavy EM Pulse Gun Makeshift Spear > --- INVENTORY -------- Improved Ion Engine Light Treads Light Treads Light Treads Light Treads Light Treads Light Treads Light Treads Light Treads Improved Treads Improved Treads Large Storage Unit Large Matter Pod Large Matter Pod Seismic Detector Heavy EM Pulse Gun Heavy EM Pulse Gun Heavy EM Pulse Gun Assault Rifle Assault Rifle Light Assault Rifle Light Assault Rifle Light Assault Rifle Light Assault Rifle Mining Laser [Rating: 17] Favorites ----------- Power Improved Ion Engine Engine Improved Ion Engine Propulsion Improved Treads Treads Improved Treads Leg Aluminum Leg Utility Seismic Detector Device Seismic Detector Storage Huge Storage Unit Weapon Heavy EM Pulse Gun Energy Gun Heavy EM Pulse Gun Ballistic Gun Assault Rifle Piercing Weapon Makeshift Spear Build | -11 -10 -10 ------- Run | Yrd Mat Min Slots Evolved . | . . . Power . | . . . Propulsion . | . . . Utility . | . . . Weapon . | . . . Parts Attached 24 | 3 9 12 Power 4 | . 1 3 Engine 4 | . 1 3 Core . | . . . Reactor . | . . . Propulsion 8 | 2 2 4 Treads 8 | 2 2 4 Leg . | . . . Wheel . | . . . Hover . | . . . Flight . | . . . Utility 3 | 1 2 . Device 1 | 1 . . Storage 2 | . 2 . Processor . | . . . Hackware . | . . . Protection . | . . . Artifact . | . . . Weapon 9 | . 4 5 Energy Gun 4 | . 2 2 Energy Cannon . | . . . Ballistic Gun 4 | . 2 2 Ballistic Cannon . | . . . Launcher . | . . . Special Weapon . | . . . Impact Weapon . | . . . Slashing Weapon . | . . . Piercing Weapon 1 | . . 1 Special Melee Weapon . | . . . Unidentified Prototypes . | . . . Parts Lost 10 | . . 10 Power 2 | . . 2 Propulsion 3 | . . 3 Utility . | . . . Weapon 5 | . . 5 Highest Loss Streak 7 | . . 7 To Critical Strikes . | . . . Average Backups 20 | 7 17 24 Power 1 | 1 1 1 Propulsion 8 | 3 6 9 Utility 3 | 1 2 4 Weapon 7 | 1 6 9 Tool/Special . | . . . Unused Backups 21 | . 8 13 Power 3 | . 2 1 Propulsion 7 | . 2 5 Utility 8 | . 4 4 Weapon 3 | . . 3 Tool/Special . | . . . Average Slot Usage (%) 99 | . 100 99 Engine 13 | . 14 13 Treads 27 | . 28 27 Device 11 | . 11 11 Storage 16 | . 17 16 Energy Gun 19 | . 10 23 Ballistic Gun 7 | . 18 3 Peak Build Rating 17 | 7 13 17 Average Rating 12 | 6 11 14 On Entrance 8 | 6 7 13 Naked Turns . | . . . Heaviest Build 113 | 14 110 113 Greatest Support 46 | 40 46 46 Greatest Overweight (x) 2 | . 2 2 Average Overweight (x) 1 | . . 1 Largest Inventory Capacity 25 | 8 25 25 Average Capacity 21 | 8 19 25 Most Carried 25 | 8 25 25 Average Carried 20 | 7 17 24 Final Capacity 25 | 8 25 25 Final Carried 25 | 8 25 17 Class Distribution -------------------- 100% | Mutant Dominant Class ---------------- Mutant | -10/Materials Mutant | -10/Mines Resources | -11 -10 -10 ----------- Run | Yrd Mat Min Matter Collected 1183 | 504 454 225 Remotely . | . . . Salvage Created 1265 | 272 339 654 Parts 76 | 22 14 40 Haulers Intercepted 2 | . 2 . Recyclers Shooed 3 | 1 2 . Parts Field Recycled . | . . . Retrieved Matter . | . . . Parts Self-Destructed . | . . . Prevented . | . . . Kills | -11 -10 -10 ------- Run | Yrd Mat Min Combat Hostiles Destroyed 21 | . 2 19 Melee 1 | . . 1 Guns 20 | . 2 18 Classes Destroyed 8 | 3 2 3 Worker 3 | 2 1 . Tunneler 10 | 9 . 1 Hauler 2 | . 2 . Recycler 3 | 1 2 . Swarmer 7 | . 2 5 Grunt 8 | . . 8 Sentry 2 | . . 2 Assembled 4 | . . 4 Best Kill Streak 5 | 3 2 5 Combat Bots Only 4 | . 2 4 Max Kills in Single Turn 2 | 1 1 2 Gunslinging . | . . . Exploded . | . . . Melee 1 | . . 1 Uniques/NPCs Destroyed . | . . . Combat | -11 -10 -10 -------- Run | Yrd Mat Min Hostile Shots Fired 159 | . 22 137 Missed 40 | . 9 31 Hits 119 | . 13 106 Melee 7 | . . 7 Projectile 112 | . 13 99 Critical Strikes 2 | . . 2 Damage Taken 1530 | . 114 1416 Core 260 | . 45 215 Absorbed by Shields . | . . . Core Remaining (%) 100 | 100 . . Volleys Fired 105 | 44 17 44 Largest 2 | 2 2 2 Hottest 90 | 40 90 90 Shots Fired 210 | 88 34 88 Gun 210 | 88 34 88 Cannon . | . . . Launcher . | . . . Special . | . . . Kinetic 148 | 88 32 28 Thermal . | . . . Explosive . | . . . Electromagnetic 62 | . 2 60 Robot Hit Streak 17 | 17 9 9 Robot Miss Streak 5 | 5 2 2 Penetration Max . | . . . Secondary Targets 3 | . . 3 Max Gunslinging Chain 1 | . . 1 Shots Hit Robots 145 | 62 22 61 Core Hits 62 | 20 14 28 Critical Kills . | . . . Critical Parts Destroyed . | . . . Critical Strikes . | . . . Melee Attacks 25 | . . 25 Impact . | . . . Slashing . | . . . Piercing 25 | . . 25 Sneak Attacks . | . . . Combat Hostiles . | . . . Follow-up Attacks . | . . . Damage Inflicted 1896 | 628 256 1012 Guns 1727 | 628 256 843 Cannons . | . . . Explosions . | . . . Melee 169 | . . 169 Ramming . | . . . Kinetic 1087 | 628 256 203 Thermal . | . . . Explosive . | . . . Electromagnetic 640 | . . 640 Impact . | . . . Slashing . | . . . Piercing 169 | . . 169 Highest Corruption . | . . . Average Corruption . | . . . Corruption Purged . | . . . Corruption Blocked . | . . . Overload Shots . | . . . Overflow Damage 15 | . . 15 Projectiles . | . . . Explosions . | . . . Melee 15 | . . 15 Knockbacks . | . . . Impact . | . . . Kinetic . | . . . Secondary . | . . . Self-Inflicted Damage . | . . . Shots . | . . . Rammed . | . . . Targets Rammed . | . . . Kicked . | . . . Crushed . | . . . Highest Temperature 222 | . 33 222 Average Temperature 70 | . 3 83 Received Heat Transfer 507 | . 9 498 Siege Activations . | . . . Martial Activations . | . . . Shielding Activations . | . . . Robots Disrupted . | . . . Combat Hostiles . | . . . Robots Corrupted . | . . . Combat Hostiles . | . . . Parts Fried . | . . . Impact Corruptions . | . . . Robots Melted . | . . . Combat Hostiles . | . . . Parts Melted . | . . . Heat Transferred . | . . . Parts Sabotaged . | . . . Parts Stolen . | . . . Parts Stripped . | . . . Power Chain Reactions . | . . . Alert | -11 -10 -10 ------- Run | Yrd Mat Min Maximum Alert Level . | . . . Low Security (%) 100 | 100 100 100 Level 1 . | . . . Level 2 . | . . . Level 3 . | . . . Level 4 . | . . . Level 5 . | . . . High Security . | . . . Max Security . | . . . Peak Influence 91 | 15 55 91 Initial . | . . . Average 16 | 2 6 22 Influence Increases 531 | 60 121 350 Destroy 0b10 Robot/C 340 | . 40 300 Destroy 0b10 Robot/NC 90 | 60 25 5 Destroy Leader 44 | . 4 40 Successful Hack 22 | . 22 . Disable Machine 15 | . 15 . Destroy Structure 5 | . . 5 Lose Combat Pursuer 15 | . 15 . Influence Decreases 511 | 60 121 330 Time Decay 471 | 60 121 290 Lost Part 40 | . . 40 Squads Dispatched . | . . . Investigation . | . . . Extermination . | . . . Reinforcement . | . . . Assault . | . . . Garrison . | . . . Intercept . | . . . Searches Triggered . | . . . Construction Impeded . | . . . Haulers Reinforced . | . . . Active Scanning Responses . | . . . Cargo Convoy Interrupts . | . . . Stealth | -11 -10 -10 --------- Run | Yrd Mat Min Distress Signals 1 | . 1 . Communications Jammed . | . . . Distress Signals . | . . . Times Spotted 32 | . 10 22 Peak Tracking Total 5 | . 5 4 Tactical Retreats 2 | . 1 1 Traps | -11 -10 -10 ------- Run | Yrd Mat Min Traps Triggered . | . . . Indirectly . | . . . Trap Hack Attempts . | . . . Triggered . | . . . Disarmed . | . . . Reprogrammed . | . . . Reused . | . . . Traps Extracted . | . . . Installed . | . . . Triggered . | . . . Machines | -11 -10 -10 ---------- Run | Yrd Mat Min Machines Disabled 1 | . 1 . Max in Single Turn 1 | . 1 . Machines Repaired . | . . . Machines Dismantled . | . . . Machines Sabotaged . | . . . Overloaded Fab Kills . | . . . Hacking | -11 -10 -10 --------- Run | Yrd Mat Min Machines Accessed 5 | . 4 1 Terminals 3 | . 2 1 Fabricators . | . . . Repair Stations . | . . . Recycling Units 2 | . 2 . Scanalyzers . | . . . Garrison Access . | . . . Total Hacks 13 | . 11 2 Successful 7 | . 7 . Failed 6 | . 4 2 Catastrophic 1 | . . 1 Database Lockouts . | . . . Manual 12 | . 10 2 Terminals 10 | . 8 2 Fabricators . | . . . Repair Stations . | . . . Recycling Units 3 | . 3 . Scanalyzers . | . . . Garrison Access . | . . . Terminal Hacks 2 | . 2 . Robot Analysis 2 | . 2 . Fabricator Hacks . | . . . Repair Station Hacks . | . . . Recycling Unit Hacks 1 | . 1 . Retrieve Components 1 | . 1 . Scanalyzer . | . . . Garrison Access Hacks . | . . . Unauthorized Hacks 4 | . 4 . Terminals 2 | . 2 . Botnet 1 | . 1 . Skim 1 | . 1 . Fabricators . | . . . Repair Stations . | . . . Recycling Units 2 | . 2 . Reject 1 | . 1 . Mask 1 | . 1 . Scanalyzers . | . . . Garrison Access . | . . . Data Cores Recovered . | . . . Used . | . . . Hacking Detections 4 | . 3 1 Full Trace Events 1 | . 1 . Feedback Events . | . . . Feedback Blocked . | . . . Robot Schematics Acquired . | . . . Robots Built . | . . . Authchips . | . . . Time . | . . . Total Robot Build Rating . | . . . Part Schematics Acquired . | . . . Parts Built . | . . . Authchips . | . . . Time . | . . . Total Part Build Rating . | . . . Parts Repaired . | . . . Time . | . . . Parts Recycled . | . . . Recycled Matter . | . . . Retrieved Matter . | . . . Retrieved Components 9 | . 9 . Parts Scanalyzed . | . . . Part Schematics Acquired . | . . . Parts Damaged . | . . . Bothacking | -11 -10 -10 ------------ Run | Yrd Mat Min Used RIF Installer . | . . . Robots Hacked . | . . . Non-combat . | . . . Combat . | . . . Robot Hacks Applied . | . . . Relay Couplers Released . | . . . Fabnet Peak Effective % . | . . . Robots Rewired . | . . . Allies Hacked . | . . . Hacks Repelled . | . . . Allies | -11 -10 -10 -------- Run | Yrd Mat Min Total Allies . | . . . Largest Group . | . . . Highest-Rated Group . | . . . Highest-Rated Ally . | . . . Total Orders . | . . . Ally Attacks . | . . . Total Damage . | . . . Kills . | . . . Allies Corrupted . | . . . Allies Melted . | . . . Intel | -11 -10 -10 ------- Run | Yrd Mat Min Active Infowar (turns) 2522 | 247 654 1621 Seismic 2522 | 247 654 1621 Robot Analysis Total 2 | . 2 . Derelict Logs Recovered 2 | . . 2 Drone Launches . | . . . Drone Recoveries . | . . . Exploration | -11 -10 -10 ------------- Run | Yrd Mat Min Turns Passed 3090 | 314 827 1949 Spaces Moved 1018 | 115 361 542 Core . | . . . Treads 1018 | 115 361 542 Legs . | . . . Wheels . | . . . Hover . | . . . Flight . | . . . Fastest Speed 160 | 160 160 240 Average Speed 255 | 160 203 309 Slowest Speed 320 | 160 320 320 Overloaded Moves . | . . . Propulsion Burnouts . | . . . Robots Hopped . | . . . Potential Cave-ins . | . . . Cave-ins Triggered . | . . . Exploration Rate (%) 49 | 4 56 89 Regions Visited 2 Branch Regions 1 Pre-discovered Areas . | . . . Known Exits Taken . | . . . Unknown Exits Taken 2 | 1 1 . Scrap Searched 1 | . . 1 Spaces Dug 5 | . . 5 Terrain Destroyed 5 | . . 5 Melee 5 | . . 5 Projectile . | . . . AOE . | . . . Terrain Rammed . | . . . Walls Destroyed . | . . . Machines Disabled . | . . . Actions | -11 -10 -10 --------- Run | Yrd Mat Min Total 1287 | 165 426 696 Wait 54 | . 3 51 Move 1016 | 114 360 542 Hop . | . . . Pick Up 33 | 3 25 5 Fast Attach 1 | 1 . . Attach 10 | . . 10 Detach . | . . . Swap 29 | 2 11 16 Drop 14 | 1 10 3 Fire 105 | 44 17 44 Melee 25 | . . 25 Ram . | . . . Kick . | . . . Crush . | . . . Escape Stasis . | . . . Rewire . | . . . Trap . | . . . Miscellaneous . | . . . Route ------- -11/Scrapyard -10/Materials (discovered 2 exits: [*Mat] / *Min) -10/Mines (discovered 3 exits: [*Mat x2] / [*Exi]) History --------- Turn | Location | Event 24 | -11/Scrapyard | Discovered new exit (range 3) 315 | -11/Scrapyard | Entered Materials 316 | -10/Materials | Build established: Mutant 983 | -10/Materials | Discovered new exit (range 10) 1076 | -10/Materials | Discovered new exit (range 11) 1142 | -10/Materials | Entered Mines 1186 | -10/Mines | Learned Materials emergency access door positions 1272 | -10/Mines | Discovered new exit (range 7) 1326 | -10/Mines | A weapon hastily lodged in a ceiling crevice suddenly fell to the ground 1385 | -10/Mines | Deemed a non-threat by the Exiles lab entrance 1385 | -10/Mines | Discovered new exit (range 5) 1491 | -10/Mines | Learned Materials trap positions 1553 | -10/Mines | Excavation squad dispatched 1553 | -10/Mines | A large section of the Mines collapsed 2263 | -10/Mines | Core integrity fell below 50% 2326 | -10/Mines | Discovered new exit (range 8) 3080 | -10/Mines | Core integrity fell below 20% 3091 | -10/Mines | Destroyed by G-47 Trooper with Particle Gun Last Messages --------------- Mercenary. 02465_ G-34 Mercenary destroyed. 02627_ K-01 Serf cleans the Core Extractor. 02796_ Connecting with Terminal... 02796_ Current location identified: Mines 02842_ K-01 Serf cleans the Core Extractor. 02998_ Acquired 45 matter. 03052_ Hvy. EM Pulse Gun destroyed. 03056_ Imp. Treads destroyed. 03056_ Critical hit (Burn: +37). 03064_ Y-45 Defender destroyed. 03064_ Switching to secondary target: G-34 Mercenary. 03066_ G-34 Mercenary misfires. 03068_ Hvy. EM Pulse Gun destroyed. 03070_ Assault Rifle destroyed. 03071_ Imp. Ion Engine destroyed. 03080_ Lgt. Treads destroyed. 03088_ Y-45 Defender destroyed. 03090_ G-34 Mercenary IFF system glitched. Map ----- +----------------------------------------------------+ | ?????## #??# #????# #????????????? | | ??????##### #?# #????# #????????????? | | ???????????## ##?#=*#????# ###??????????? | | #????????????###??#%!#???## ##?????????? | | ##???????????????#|=#??## #?????????? | | #???????????????# #??# #?????????? | | #???????????????#[ #??# ##?????????? | | ##??????????????#=%#??## ##??????????? | | ##?????????????#=%#???# #???????????? | | #?????????????#% #???# #???????????? | | #?????????????# #??# ##???????????? | | #????????????##! #?# #????????????? | | ##????????????# #?# #????????????? | | # #?????????????# #?# #????????????? | | # ##########????# #?# #????????????? | | # #????# #?## ##????????????? | | # #????# #??###??????????????? | | ###### #????# ##??????????????????? | | ##????# #???## #??????????????????? | | ##???### ##### #?######???????????? | | ##???## ##?#"[!"##??????????? | | #????# < ###??""[/""#??????????? | | #????# ##????? ! #??????????? | | #????# ####?????? =*%#???????????? | | #????# ##???????###++###??????????? | | ##????## ##???????## @%[* ###### #???? | | ##?????# =*##???????## [ g #???? | | #####?# [*%########## g #???? | | ### % ## #####???? | | ## ## ### #???????? | | ## ##### ## ##??# #???????? | | ### #???# #???? #??????? | | ##?### ???##### ##????? #??????? | | ##????## ??????####??????? #?????? | | ##??????# #???????????????? #?????? | | ##??????? ##????????????????? ?????? | | ##??????? ##??????????????????? #????? | | ##?????? #?????????????????????##????? | | #?????? ???????????????????????????? | | #?????? ???????????????????????????? | | # #?????? ???????????????????????????? | | # #??????# ???????????????????????????? | | # #?????? ???????????????????????????? | | # #?????? ????????????????????????????? | | ## ##???????????????????????????????????? | | ??###????????????????????????????????????? | | ?????????????????????????????????????????? | | ?????????????????????????????????????????? | | ?????????????????????????????????????????? | | ?????????????????????????????????????????? | +----------------------------------------------------+ Best States ------------- Heat Dissipation 25 Energy Generation 12 Energy Capacity 265 Matter Stores 300 Matter Capacity 300 Sight Range 16 Terrain Scan Density 10 Evasion (%) 40 Recoil Reduction 2 Item Schematics ----------------- None Robot Schematics ------------------ None Fabricated ------------ Nothing Repaired ---------- Nothing Alien Tech Used ----------------- None Achievements -------------- None Challenges ------------ None Game ------ Seed HypervelocityVortexChainsaw Manual? 0 Play Time 00:32:35 Cumulative 471.2 hours Start 2025.09.15 @ 13:31:49 End 2025.09.15 @ 14:04:40 Sessions 1 Manual Loads 0 Difficulty Rogue Special Mode None Game No. 55 Rogue 52 Adventurer 3 Explorer 0 Win Type - Total 17 Types 9/1/3/1/0/0/1/1/1/0 Lore% 75 Gallery% 83 Achievement% 89 Wizard Run 0 Options --------- Layout 1 ASCII 0 Keyboard 0 Movement Numpad Keybinds 0 Fullscreen 1 Font 24/Smallcaps Map View 50x35 Zoom Use 0% Tactical HUD 1 Map Filters NONE Filters NONE Steam 1 RUN: d82fecdb-b64e-4bb9-b8f0-ca652f0e6eab